bitfinex/quotes_SOLUSD_20250805
["timestamp","ask_amount","ask_price","bid_price","bid_amount"]
[1754385731655,28.74869568,167.6,167.59,0.06]
[1754385731853,34.71528279,167.6,167.59,0.06]
[1754385732749,21.21496425,167.6,167.59,0.06]
[1754385732937,27.48296195,167.6,167.59,0.06]
[1754385734658,34.71528279,167.6,167.59,0.06]
[1754385734825,26.0,167.57,167.52,0.06]
[1754385735157,6.41015927,167.53,167.52,41.78]
[1754385735327,6.41015927,167.53,167.52,42.46]
[1754385739435,6.41015927,167.54,167.52,42.46]
[1754385739641,6.41015927,167.55,167.53,0.68]
[1754385739839,6.41015927,167.55,167.54,41.7]
[1754385740043,6.41015927,167.55,167.54,42.38]
[1754385740237,15.10621557,167.58,167.54,42.38]
[1754385740442,6.41015927,167.57,167.55,0.68]
[1754385740754,6.41015927,167.57,167.56,41.7]
[1754385741654,12.37781457,167.57,167.56,41.7]
[1754385742134,6.41015927,167.57,167.56,41.7]
[1754385742460,6.41015927,167.57,167.56,42.38]
[1754385744562,0.03,167.59,167.56,129.84999997]
[1754385744763,0.03,167.59,167.57,0.68]
[1754385745073,0.03,167.59,167.58,41.72]
[1754385745444,0.03,167.59,167.58,42.4]
[1754385745643,0.03,167.59,167.58,129.86999997]
[1754385750964,0.03,167.59,167.58,42.4]
[1754385754471,0.03,167.59,167.58,129.9]
[1754385754782,0.03,167.59,167.58,142.27745847]
[1754385755686,0.03,167.59,167.58,135.8672992]
[1754385755891,0.03,167.59,167.58,142.27745847]
[1754385758804,0.03,167.59,167.58,135.8672992]
[1754385761484,0.03,167.59,167.58,135.8772992]
[1754385764580,7.10015927,167.59,167.55,88.19]
[1754385764784,6.41015927,167.56,167.55,87.5]
[1754385764984,7.07015927,167.56,167.55,129.16]
[1754385765281,6.41015927,167.57,167.55,129.16]
[1754385766099,7.07015927,167.57,167.55,129.16]
[1754385766908,7.07015927,167.56,167.55,129.16]
[1754385767718,28.14438629,167.56,167.55,129.16]
[1754385767930,28.14438629,167.56,167.55,41.66]
[1754385769122,22.17637484,167.56,167.55,41.66]
[1754385769501,6.41015927,167.56,167.55,41.66]
[1754385769700,15.10621557,167.58,167.55,42.35]
[1754385769906,6.41015927,167.57,167.55,42.35]
[1754385770306,0.03,167.59,167.56,0.69]
[1754385770509,6.44015927,167.59,167.57,41.68]
[1754385770824,6.41015927,167.58,167.57,41.68]
[1754385771126,7.07015927,167.58,167.57,41.68]
[1754385771518,6.41015927,167.58,167.57,41.68]
[1754385771908,0.03,167.59,167.57,41.68]
[1754385772223,6.41015927,167.58,167.57,41.68]
[1754385774628,0.69,167.59,167.57,41.68]
[1754385774831,6.41015927,167.58,167.57,41.68]
[1754385775315,6.41015927,167.58,167.57,129.18]
[1754385775850,6.41015927,167.58,167.57,87.5]
[1754385775851,28.14367404,167.58,167.57,87.5]
[1754385775998,28.28583561,167.58,167.57,87.5]
[1754385776198,15.10621557,167.57,167.54,41.68]
[1754385776422,6.41015927,167.55,167.54,41.68]
[1754385777526,0.66,167.56,167.54,41.68]
[1754385777726,6.41015927,167.55,167.54,41.68]
[1754385777918,6.41015927,167.56,167.54,42.37]
[1754385779333,0.03,167.59,167.54,42.37]
[1754385779334,6.44015927,167.59,167.55,0.66]
[1754385779503,6.44015927,167.59,167.56,41.68]
[1754385779504,0.03,167.59,167.56,41.68]
[1754385779709,0.03,167.59,167.57,0.66]
[1754385779928,0.03,167.59,167.58,41.7]
[1754385780356,7.16015927,167.59,167.58,41.7]
[1754385780853,6.44015927,167.59,167.58,42.36]
[1754385781544,6.44015927,167.59,167.58,41.7]
[1754385784065,0.03,167.59,167.58,135.8272992]
[1754385789048,0.03,167.59,167.58,142.23745847]
[1754385789947,0.03,167.59,167.58,135.8272992]
[1754385790147,0.03,167.59,167.58,135.8872992]
[1754385790349,0.03,167.59,167.58,142.29745847]
[1754385790770,0.03,167.59,167.58,135.8872992]
[1754385790949,0.03,167.59,167.58,142.29745847]
[1754385794074,0.03,167.59,167.58,135.8872992]
[1754385794238,0.03,167.59,167.58,142.29745847]
[1754385794776,0.03,167.59,167.58,135.8872992]
[1754385794968,0.03,167.59,167.58,142.29745847]
[1754385798493,0.03,167.59,167.58,149.45761747]
[1754385798869,0.03,167.61,167.6,87.47]
[1754385799100,0.03,167.61,167.6,135.54015927]
[1754385799261,0.03,167.61,167.6,136.20015927]
[1754385799958,0.03,167.61,167.6,283.80015927]
[1754385800162,0.03,167.65,167.6,283.80015927]
[1754385800365,0.03,167.65,167.64,6.41015927]
[1754385800563,0.03,167.65,167.64,141.52532271]
[1754385800967,0.03,167.65,167.64,142.18532271]
[1754385804182,0.03,167.65,167.64,135.77516344]
[1754385804363,0.03,167.65,167.64,141.52532271]
[1754385805371,0.75,167.65,167.64,129.11]
[1754385807686,0.75,167.65,167.64,41.64]
[1754385807687,13.1249669,167.65,167.64,41.64]
[1754385808267,21.07169756,167.64,167.61,87.47]
[1754385808468,6.41015927,167.62,167.58,93.49719999]
[1754385808784,0.65,167.61,167.59,41.66]
[1754385809882,15.10621557,167.64,167.59,41.66]
[1754385810090,0.03,167.65,167.6,0.67]
[1754385810293,0.65,167.64,167.61,41.7]
[1754385810469,0.65,167.63,167.62,41.7]
[1754385810663,7.06015927,167.63,167.62,41.7]
[1754385810992,6.44015927,167.65,167.62,41.7]
[1754385811288,0.03,167.65,167.62,42.37]
[1754385811498,0.68,167.65,167.62,41.7]
[1754385812491,0.68,167.65,167.62,42.37]
[1754385812664,0.03,167.65,167.63,0.67]
[1754385812866,0.03,167.65,167.64,41.72]
[1754385814466,0.03,167.65,167.64,48.80015927]
[1754385815177,0.03,167.65,167.64,54.76532271]
[1754385817492,0.03,167.65,167.64,41.72]
[1754385818080,0.68,167.65,167.64,41.72]
[1754385818271,0.03,167.65,167.64,41.72]
[1754385818897,0.03,167.65,167.64,42.39]
[1754385819075,0.03,167.65,167.64,41.72]
[1754385819283,0.03,167.65,167.64,48.35516344]
[1754385819691,0.03,167.65,167.64,135.82516344]
[1754385820075,0.03,167.65,167.64,135.15516344]
[1754385821404,0.03,167.65,167.64,142.23532271]
[1754385822107,0.03,167.65,167.64,129.19]
[1754385822877,0.68,167.65,167.64,129.19]
[1754385824302,0.03,167.65,167.64,129.19]
[1754385824609,0.68,167.65,167.64,129.19]
[1754385824979,0.03,167.65,167.64,129.19]
[1754385826002,0.68,167.65,167.64,129.19]
[1754385827306,0.68,167.65,167.64,41.72]
[1754385827307,6.64480763,167.65,167.64,41.72]
[1754385828182,6.64480763,167.65,167.64,41.7]
[1754385828704,13.0549669,167.65,167.64,41.7]
[1754385829086,6.64480763,167.65,167.64,41.7]
[1754385829405,13.0549669,167.65,167.64,41.7]
[1754385829601,7.09015927,167.65,167.64,41.7]
[1754385830474,0.03,167.65,167.64,41.7]
[1754385830679,0.03,167.65,167.64,42.37]
[1754385830979,0.03,167.65,167.64,48.33516344]
[1754385831388,0.03,167.65,167.64,135.80516344]
[1754385832406,0.03,167.65,167.64,142.21532271]
[1754385837808,0.03,167.65,167.64,135.80516344]
[1754385838107,0.03,167.65,167.64,142.21532271]
[1754385842522,0.03,167.65,167.64,135.80516344]
[1754385842815,0.03,167.65,167.64,142.21532271]
[1754385844423,0.03,167.65,167.64,135.80516344]
[1754385844723,0.03,167.65,167.64,141.54532271]
[1754385845020,0.03,167.65,167.64,142.26532271]
[1754385846729,0.03,167.65,167.61,162.5755367]
[1754385846730,7.12015927,167.65,167.61,87.53]
[1754385847028,0.68,167.64,167.62,41.64]
[1754385847413,7.09015927,167.64,167.61,0.06]
[1754385847603,0.68,167.63,167.62,41.64]
[1754385852121,0.68,167.63,167.62,129.11]
[1754385853411,7.12015927,167.65,167.62,135.07587032]
[1754385854502,7.12015927,167.65,167.62,129.11]
[1754385854704,0.68,167.64,167.62,129.11]
[1754385857609,6.44015927,167.65,167.62,129.83]
[1754385857827,7.12015927,167.65,167.62,129.83]
[1754385858355,0.03,167.65,167.63,0.72]
[1754385858550,0.03,167.65,167.64,42.34]
[1754385858827,0.03,167.65,167.64,48.75015927]
[1754385859611,0.03,167.65,167.64,54.71532271]
[1754385860802,0.03,167.65,167.64,48.30516344]
[1754385861026,0.03,167.65,167.64,54.71532271]
[1754385863917,0.03,167.65,167.64,142.18532271]
[1754385864936,0.03,167.67,167.65,87.44]
[1754385865134,0.03,167.67,167.66,48.01015927]
[1754385865431,0.03,167.67,167.66,136.17015927]
[1754385865922,0.03,167.67,167.66,129.76]
[1754385866124,0.03,167.67,167.66,142.13461113]
[1754385868813,0.03,167.67,167.66,135.72445186]
[1754385869017,0.03,167.67,167.66,144.52245713]
[1754385869417,0.03,167.67,167.66,142.13461113]
[1754385870748,0.03,167.67,167.66,141.41461113]
[1754385871744,0.7,167.67,167.66,87.44]
[1754385871940,7.11015927,167.67,167.63,87.44]
[1754385872120,0.67,167.66,167.64,41.66]
[1754385872520,0.03,167.67,167.64,41.66]
[1754385872741,0.67,167.65,167.64,41.66]
[1754385873736,0.67,167.65,167.64,41.64]
[1754385874556,7.08015927,167.65,167.64,41.64]
[1754385875344,7.08015927,167.65,167.62,87.44]
[1754385875530,13.04505751,167.65,167.63,41.64]
[1754385875730,6.41015927,167.65,167.63,41.64]
[1754385875947,7.08015927,167.64,167.63,41.64]
[1754385876446,15.10621557,167.63,167.61,0.06]
[1754385876649,6.41015927,167.62,167.61,41.7]
[1754385876853,7.08015927,167.62,167.61,41.7]
[1754385878845,28.15225003,167.62,167.61,0.06]
[1754385879449,21.74209076,167.62,167.61,0.06]
[1754385879856,28.15225003,167.62,167.61,0.06]
[1754385883466,21.74209076,167.62,167.61,0.06]
[1754385883651,28.15225003,167.62,167.61,0.06]
[1754385889567,21.51637484,167.62,167.61,0.06]
[1754385891567,15.10621557,167.62,167.61,0.06]
[1754385891769,21.51637484,167.62,167.61,0.06]
[1754385894797,6.41015927,167.62,167.61,0.74]
[1754385895002,32.41015927,167.63,167.61,0.74]
[1754385895177,32.41015927,167.63,167.62,41.62]
[1754385895368,32.41015927,167.63,167.62,42.3]
[1754385896583,32.41015927,167.63,167.62,41.62]
[1754385897782,6.41015927,167.64,167.62,42.3]
[1754385897989,0.03,167.65,167.63,0.68]
[1754385898205,21.51637484,167.64,167.63,0.68]
[1754385898368,15.10621557,167.64,167.62,42.3]
[1754385898576,6.41015927,167.63,167.62,42.3]
[1754385898882,6.41015927,167.63,167.62,41.62]
[1754385899506,6.41015927,167.63,167.62,129.06]
[1754385900780,6.41015927,167.63,167.62,129.78]
[1754385901173,15.10621557,167.64,167.62,129.78]
[1754385901501,6.41015927,167.63,167.62,129.78]
[1754385901799,6.41015927,167.64,167.62,129.78]
[1754385901983,0.03,167.65,167.63,0.72]
[1754385902307,0.03,167.65,167.64,41.62]
[1754385902478,0.03,167.65,167.64,42.34]
[1754385903675,0.03,167.65,167.64,41.62]
[1754385904006,0.03,167.65,167.64,42.34]
[1754385904380,6.44015927,167.65,167.64,41.62]
[1754385904583,22.26637484,167.65,167.64,41.62]
[1754385905188,15.10621557,167.64,167.63,129.06]
[1754385905386,22.23637484,167.64,167.63,87.44]
[1754385905801,22.37853641,167.64,167.63,87.44]
[1754385906004,28.34369985,167.64,167.63,87.44]
[1754385906182,28.34369985,167.64,167.61,41.68]
[1754385906383,21.51637484,167.62,167.61,41.68]
[1754385906582,21.51637484,167.62,167.61,0.06]
[1754385906783,22.23637484,167.62,167.61,0.06]
[1754385906983,15.82621557,167.62,167.61,0.06]
[1754385907201,22.23637484,167.62,167.61,0.06]
[1754385907916,28.20225003,167.62,167.61,0.06]
[1754385913927,28.3444116,167.62,167.61,0.06]
[1754385916507,32.36184148,167.62,167.61,0.06]
[1754385916910,34.75182748,167.62,167.61,0.06]
[1754385919516,41.16198675,167.62,167.61,0.06]
[1754385919719,41.24837714,167.6,167.59,0.06]
[1754385919921,58.08612556,167.6,167.59,0.06]
[1754385920238,58.80612556,167.6,167.59,0.06]
[1754385921620,67.16298367,167.6,167.59,0.06]
[1754385924257,63.14555379,167.6,167.59,0.06]
[1754385924762,67.16139668,167.6,167.59,0.06]
[1754385925723,53.48296195,167.6,167.59,0.78]
[1754385927913,53.48296195,167.6,167.59,0.06]
[1754385930044,54.15296195,167.6,167.59,0.06]
[1754385931256,53.48296195,167.6,167.59,0.06]
[1754385931763,53.48296195,167.6,167.59,0.72]
[1754385932270,21.51637484,167.6,167.59,0.72]
[1754385932946,15.10621557,167.6,167.59,0.72]
[1754385933249,27.48296195,167.6,167.59,0.72]
[1754385933744,21.51637484,167.6,167.59,0.72]
[1754385934065,6.41015927,167.6,167.59,0.72]
[1754385935574,15.10621557,167.61,167.59,0.72]
[1754385935773,0.03,167.65,167.6,41.62]
[1754385935951,0.03,167.65,167.61,0.66]
[1754385936138,0.03,167.65,167.61,7.07015927]
[1754385936544,0.03,167.65,167.62,0.66]
[1754385936738,0.03,167.65,167.63,41.62]
[1754385937170,6.44015927,167.65,167.63,41.62]
[1754385937470,6.44015927,167.65,167.63,42.28]
[1754385937956,6.41015927,167.64,167.63,41.62]
[1754385938166,21.51637484,167.64,167.63,41.62]
[1754385938363,21.51637484,167.64,167.61,42.28]
[1754385938565,6.41015927,167.63,167.62,0.66]
[1754385939459,7.08015927,167.63,167.61,41.62]
[1754385939659,6.41015927,167.62,167.61,41.62]
[1754385940359,6.41015927,167.62,167.61,0.66]
[1754385940562,12.37603446,167.62,167.61,0.66]
[1754385941164,12.37603446,167.62,167.59,41.68]
[1754385941348,6.41015927,167.61,167.6,0.66]
[1754385941876,21.51637484,167.61,167.6,0.66]
[1754385942264,27.48260597,167.61,167.6,0.66]
[1754385943072,15.10621557,167.6,167.59,41.68]
[1754385943263,21.51637484,167.6,167.59,41.68]
[1754385943475,21.51637484,167.6,167.59,42.34]
[1754385945369,27.48296195,167.6,167.59,42.34]
[1754385946459,27.48296195,167.6,167.59,41.68]
[1754385947782,12.37674638,167.6,167.59,41.68]
[1754385947969,13.18890795,167.6,167.59,0.06]
[1754385952589,5.96658711,167.6,167.59,0.06]
[1754385952880,6.41015927,167.6,167.59,0.72]
[1754385953295,6.41015927,167.6,167.59,4.97664892]
[1754385953885,26.03,167.63,167.59,46.59664892]
[1754385954193,0.03,167.63,167.6,4.91664892]
[1754385954396,6.41015927,167.62,167.59,41.68]
[1754385954592,6.41015927,167.62,167.61,0.66]
[1754385955087,6.41015927,167.62,167.61,4.86077948]
[1754385955283,6.41015927,167.62,167.61,0.66]
[1754385955810,6.44015927,167.63,167.61,42.28]
[1754385956203,21.54637484,167.63,167.62,0.66]
[1754385957080,0.03,167.63,167.62,0.66]
[1754385957310,6.44015927,167.63,167.62,0.66]
[1754385957800,0.03,167.63,167.62,0.66]
[1754385958206,6.44015927,167.63,167.62,0.66]
[1754385958391,6.44015927,167.63,167.61,42.28]
[1754385958904,6.41015927,167.62,167.61,42.28]
[1754385960203,6.44015927,167.63,167.61,42.28]
[1754385960506,6.44015927,167.63,167.62,0.69]
[1754385961200,0.03,167.63,167.62,0.69]
[1754385961886,0.03,167.63,167.62,6.65587519]
[1754385962086,0.03,167.63,167.62,13.06603446]
[1754385968085,0.03,167.63,167.62,6.65587519]
[1754385968291,0.03,167.63,167.62,13.06603446]
[1754385969508,0.03,167.63,167.59,0.65669431]
[1754385969712,0.03,167.63,167.6,42.31]
[1754385970015,0.03,167.63,167.61,0.69]
[1754385970208,0.03,167.63,167.62,41.62]
[1754385970510,0.03,167.63,167.62,129.06]
[1754385970699,0.03,167.63,167.62,129.75]
[1754385971307,0.03,167.63,167.62,135.71587519]
[1754385972527,0.03,167.63,167.62,129.75]
[1754385972815,0.03,167.63,167.62,129.06]
[1754385975815,0.74,167.63,167.62,129.06]
[1754385977106,7.15015927,167.63,167.62,129.06]
[1754385977626,6.44015927,167.63,167.62,129.06]
[1754385977923,0.03,167.63,167.62,129.06]
[1754385980397,0.03,167.63,167.62,142.12603446]
[1754385983807,0.03,167.63,167.62,135.71587519]
[1754385984008,0.03,167.63,167.62,142.12603446]
[1754385988536,0.03,167.63,167.62,135.71587519]
[1754385988936,0.03,167.63,167.62,142.12603446]
[1754385993715,0.03,167.63,167.62,135.71587519]
[1754385993918,0.03,167.63,167.62,142.12603446]
[1754385996140,1e-08,167.63,167.62,289.72603446]
[1754385997252,1e-08,167.63,167.62,142.12603446]
[1754385999144,1e-08,167.63,167.62,142.26819603]
[1754385999355,1e-08,167.63,167.62,157.3744116]
[1754386001334,1e-08,167.64,167.63,15.24837714]
[1754386001544,1e-08,167.64,167.63,257.94508833]
[1754386001732,1e-08,167.64,167.63,242.24232084]
[1754386002157,1e-08,167.64,167.63,242.10015927]
[1754386002369,1e-08,167.64,167.63,235.69]
[1754386002535,1e-08,167.64,167.63,283.70015927]
[1754386003560,1e-08,167.64,167.63,289.66567856]
[1754386004636,1e-08,167.64,167.63,283.25551929]
[1754386004838,1e-08,167.64,167.63,289.01567856]
[1754386005053,1e-08,167.64,167.63,289.66567856]
[1754386005952,0.03,167.67,167.66,87.37999999]
[1754386006144,0.03,167.67,167.66,135.39015926]
[1754386006348,0.03,167.67,167.66,136.04015926]
[1754386007058,0.03,167.67,167.66,136.02015926]
[1754386008146,0.03,167.67,167.66,141.98461112]
[1754386009264,0.75,167.67,167.66,141.33461112]
[1754386012058,0.03,167.67,167.66,141.33461112]
[1754386013045,0.03,167.67,167.66,141.98461112]
[1754386013370,0.75,167.67,167.66,141.33461112]
[1754386014271,0.03,167.67,167.66,141.98461112]
[1754386015147,0.03,167.67,167.66,141.33461112]
[1754386017051,0.03,167.67,167.66,141.98461112]
[1754386017648,0.03,167.67,167.66,134.92445185]
[1754386017851,0.03,167.67,167.66,141.33461112]
[1754386018046,0.03,167.67,167.66,135.57445185]
[1754386018351,0.03,167.67,167.66,141.98461112]
[1754386020846,0.03,167.69,167.67,87.34999999]
[1754386021173,0.03,167.69,167.68,47.99015927]
[1754386021369,0.03,167.69,167.68,48.69015927]
[1754386021681,0.03,167.69,167.68,142.00389971]
[1754386022060,0.03,167.69,167.68,135.59374044]
[1754386022264,0.03,167.69,167.68,142.00389971]
[1754386022772,0.03,167.69,167.68,141.30389971]
[1754386023149,0.75,167.69,167.68,134.89374044]
[1754386023353,0.75,167.69,167.68,141.30389971]
[1754386024409,0.75,167.69,167.66,87.34999999]
[1754386024587,0.75,167.69,167.65,2.387561]
[1754386024588,6.41015927,167.67,167.65,2.387561]
[1754386024754,0.72,167.66,167.63,5.96539204]
[1754386024958,0.72,167.68,167.64,48.69015927]
[1754386025184,0.72,167.68,167.65,7.11015927]
[1754386025377,0.72,167.68,167.66,41.58]
[1754386025692,0.03,167.69,167.67,12.37425541]
[1754386025853,0.03,167.69,167.68,47.99015927]
[1754386026046,0.03,167.69,167.68,48.69015927]
[1754386026863,0.03,167.69,167.68,48.24374045]
[1754386027178,0.03,167.69,167.68,54.65389972]
[1754386028379,0.03,167.69,167.68,48.24374045]
[1754386028679,0.03,167.69,167.68,54.65389972]
[1754386029079,0.03,167.69,167.68,53.95389972]
[1754386029382,0.03,167.69,167.68,47.54374045]
[1754386029561,0.03,167.69,167.68,141.30389971]
[1754386031899,0.03,167.69,167.68,142.00389971]
[1754386033579,0.03,167.69,167.68,141.30389971]
[1754386035066,0.03,167.69,167.68,142.00389971]
[1754386036798,0.03,167.69,167.68,139.69146209]
[1754386041584,0.03,167.7,167.69,87.31999999]
[1754386041796,0.03,167.7,167.69,91.41772164]
[1754386042699,0.03,167.7,167.69,88.01999999]
[1754386042874,0.03,167.7,167.69,92.11772164]
[1754386043198,0.03,167.7,167.69,91.41772164]
[1754386043411,0.03,167.7,167.69,97.38110645]
[1754386044806,0.03,167.7,167.69,98.08110645]
[1754386045308,0.03,167.7,167.69,97.38110645]
[1754386047097,0.03,167.7,167.69,98.08110645]
[1754386048189,0.03,167.7,167.69,98.67744493]
[1754386048701,0.03,167.71,167.7,87.28999999]
[1754386048892,0.03,167.71,167.7,133.64772164]
[1754386049802,0.03,167.71,167.7,139.61075085]
[1754386050002,0.03,167.71,167.7,156.00163745]
[1754386050202,0.03,167.71,167.7,139.61075085]
[1754386051023,0.03,167.72,167.7,182.00163745]
[1754386051312,0.03,167.72,167.71,5.37398901]
[1754386051519,0.03,167.72,167.71,152.97398901]
[1754386051819,0.03,167.72,167.71,158.34039531]
[1754386052910,1e-08,167.72,167.71,162.50159988]
[1754386053081,1e-08,167.72,167.71,102.19159987]
[1754386053282,1e-08,167.72,167.71,102.78786723]
[1754386053486,1e-08,167.72,167.71,117.8940828]
[1754386053792,1e-08,167.72,167.71,265.4940828]
[1754386053992,1e-08,167.72,167.71,264.89781544]
[1754386055597,1e-08,167.72,167.71,249.6494383]
[1754386055795,1e-08,167.72,167.71,291.2094383]
[1754386056203,1e-08,167.72,167.71,290.5294383]
[1754386056711,1e-08,167.72,167.71,292.83216255]
[1754386057220,1e-08,167.72,167.71,288.81311955]
[1754386057397,0.72000001,167.72,167.71,47.52267366]
[1754386061105,1e-08,167.72,167.71,47.52267366]
[1754386061491,1e-08,167.72,167.71,87.28999999]
[1754386061691,7.12044591,167.72,167.71,87.28999999]
[1754386062117,7.12044591,167.72,167.71,128.84999999]
[1754386064024,7.12044591,167.72,167.71,41.56]
[1754386064399,0.72000001,167.72,167.71,41.56]
[1754386067829,1e-08,167.72,167.71,41.56]
[1754386068512,1e-08,167.72,167.71,47.52267366]
[1754386069626,1e-08,167.72,167.71,48.20267366]
[1754386070124,1e-08,167.72,167.71,47.52267366]
[1754386071723,0.72000001,167.72,167.71,47.52267366]
[1754386072509,1e-08,167.72,167.71,47.52267366]
[1754386073314,0.72000001,167.72,167.71,47.52267366]
[1754386073906,1e-08,167.72,167.71,48.20267366]
[1754386074116,1e-08,167.72,167.71,135.49267365]
[1754386074432,1e-08,167.72,167.71,134.87267365]
[1754386075724,1e-08,167.72,167.71,135.55267365]
[1754386076126,1e-08,167.72,167.71,134.87267365]
[1754386078034,1e-08,167.72,167.71,135.55267365]
[1754386078335,1e-08,167.72,167.71,134.87267365]
[1754386079133,1e-08,167.72,167.71,135.59267365]
[1754386079533,1e-08,167.72,167.71,134.87267365]
[1754386080611,1e-08,167.72,167.71,135.59267365]
[1754386080817,1e-08,167.72,167.71,134.87267365]
[1754386081831,1e-08,167.72,167.71,135.59267365]
[1754386085627,1e-08,167.72,167.71,134.87267365]
[1754386085831,0.68000001,167.72,167.71,134.87267365]
[1754386086158,1e-08,167.72,167.71,134.87267365]
[1754386086450,0.68000001,167.72,167.71,134.87267365]
[1754386087223,1e-08,167.72,167.71,134.87267365]
[1754386089365,0.68000001,167.72,167.71,134.87267365]
[1754386091251,0.68000001,167.72,167.71,128.90999999]
[1754386092025,19.88372474,167.72,167.71,0.06]
[1754386092229,19.88372474,167.72,167.71,41.62]
[1754386092529,25.84604288,167.72,167.71,41.62]
[1754386092742,32.17217389,167.72,167.71,41.62]
[1754386094133,32.17217389,167.72,167.71,0.06]
[1754386095531,26.20985575,167.72,167.71,0.06]
[1754386096049,22.19379462,167.72,167.71,0.06]
[1754386096252,28.15611276,167.72,167.71,0.06]
[1754386096950,32.1694212,167.72,167.71,0.06]
[1754386098055,31.4894212,167.72,167.71,0.06]
[1754386098227,27.47611276,167.72,167.71,0.06]
[1754386098436,28.15611276,167.72,167.71,0.06]
[1754386098660,22.19379462,167.72,167.71,0.06]
[1754386099329,6.40757905,167.72,167.71,0.06]
[1754386099532,1e-08,167.72,167.71,0.78]
[1754386100048,1e-08,167.72,167.71,6.74267366]
[1754386108571,1e-08,167.72,167.71,6.02267366]
[1754386109280,1e-08,167.72,167.71,6.71267366]
[1754386115477,1e-08,167.72,167.71,94.00267365]
[1754386115868,0.03,167.73,167.72,87.28999998]
[1754386116072,0.03,167.73,167.72,129.53999998]
[1754386116571,0.03,167.73,167.72,128.84999998]
[1754386117076,0.03,167.73,167.72,129.53999998]
[1754386117781,0.03,167.74,167.73,12.36954171]
[1754386117988,0.03,167.74,167.73,13.05954171]
[1754386118156,0.71,167.84,167.78,6.40757904]
[1754386118366,0.71,167.85,167.8,6.40757904]
[1754386118559,6.40757904,167.85,167.81,42.27]
[1754386118765,6.40757904,167.83,167.82,41.58]
[1754386119187,7.11757904,167.83,167.82,41.58]
[1754386119390,0.71,167.83,167.82,41.58]
[1754386120263,6.40757904,167.84,167.82,47.53858451]
[1754386120465,7.11757904,167.85,167.82,47.53858451]
[1754386120792,7.11757904,167.85,167.82,48.22858451]
[1754386121094,7.11757904,167.85,167.82,47.53858451]
[1754386121276,7.11757904,167.84,167.82,47.53858451]
[1754386121588,6.40757904,167.84,167.82,48.22858451]
[1754386121979,6.40757904,167.84,167.82,47.53858451]
[1754386122369,7.11757904,167.85,167.82,47.53858451]
[1754386122682,7.11757904,167.84,167.82,47.53858451]
[1754386124078,6.40757904,167.84,167.82,41.58]
[1754386124280,0.71,167.83,167.82,128.86999998]
[1754386124489,7.11757904,167.83,167.82,128.86999998]
[1754386125700,6.40757904,167.84,167.82,129.55999998]
[1754386126800,6.40757904,167.84,167.82,135.51873392]
[1754386127190,6.40757904,167.84,167.82,134.82873392]
[1754386128976,7.11757904,167.84,167.82,128.86999998]
[1754386130086,6.40757904,167.84,167.82,128.86999998]
[1754386130302,7.11757904,167.83,167.82,128.86999998]
[1754386130979,7.11757904,167.83,167.82,128.82999998]
[1754386131180,13.07598933,167.83,167.82,41.54]
[1754386132172,7.11757904,167.83,167.82,41.54]
[1754386142596,6.40757904,167.83,167.82,41.54]
[1754386144001,7.06757904,167.83,167.82,41.54]
[1754386145414,6.40757904,167.83,167.82,41.54]
[1754386146027,0.03,167.84,167.82,48.2187487]
[1754386146201,6.43757904,167.84,167.83,0.72]
[1754386146611,6.43757904,167.84,167.82,48.2187487]
[1754386146806,6.40757904,167.83,167.82,48.2187487]